[Event "Titled Tuesday Blitz March 28 Early 2023"]
[White "Maranhao,Jose Renato Ruiz"]
[Black "Abrosimov, Vladimir"]
[WhiteFideId "2135175"]
[BlackFideId "4166892"]
[WhiteElo "1970"]
[BlackElo "2336"]
[Result "0-1"]
[Round "04"]
[TimeControl "180+2"]
[Date "2023.03.28"]
[WhiteClock "0:00:03"]
[BlackClock "0:01:29"]

1. e4 {[%clk 0:03:00]}  c5 {[%clk 0:02:59]} 2. d4 {[%clk 0:03:00]}  cxd4 {[%clk 0:02:59]} 3. c3 {[%clk 0:03:01]}  d3 {[%clk 0:02:59]} 4. Nf3 {[%clk 0:03:00]}  Nc6 {[%clk 0:02:59]} 5. Bxd3 {[%clk 0:03:00]}  d6 {[%clk 0:03:00]} 6. O-O {[%clk 0:03:00]}  Nf6 {[%clk 0:02:59]} 7. Bg5 {[%clk 0:02:53]}  e6 {[%clk 0:02:56]} 8. Nbd2 {[%clk 0:02:37]}  Be7 {[%clk 0:02:56]} 9. Qe2 {[%clk 0:02:27]}  O-O {[%clk 0:02:56]} 10. Rfd1 {[%clk 0:02:25]}  Qc7 {[%clk 0:02:54]} 11. b4 {[%clk 0:02:15]}  Ne5 {[%clk 0:02:44]} 12. Nxe5 {[%clk 0:02:14]}  dxe5 {[%clk 0:02:45]} 13. c4 {[%clk 0:01:55]}  Bxb4 {[%clk 0:02:41]} 14. Bxf6 {[%clk 0:01:54]}  gxf6 {[%clk 0:02:42]} 15. Qg4+ {[%clk 0:01:43]}  Kh8 {[%clk 0:02:42]} 16. Nf3 {[%clk 0:01:43]}  Rg8 {[%clk 0:02:41]} 17. Qh4 {[%clk 0:01:43]}  Rg6 {[%clk 0:02:38]} 18. h3 {[%clk 0:01:36]}  Bd7 {[%clk 0:02:36]} 19. Nh2 {[%clk 0:01:35]}  Bc6 {[%clk 0:02:30]} 20. Ng4 {[%clk 0:01:35]}  Qe7 {[%clk 0:02:21]} 21. Rab1 {[%clk 0:01:32]}  Bc5 {[%clk 0:02:20]} 22. Qh5 {[%clk 0:01:12]}  Rag8 {[%clk 0:02:13]} 23. g3 {[%clk 0:00:56]}  b6 {[%clk 0:02:00]} 24. Rb2 {[%clk 0:00:28]}  Rg5 {[%clk 0:01:55]} 25. Qh4 {[%clk 0:00:27]}  f5 {[%clk 0:01:49]} 26. Nh6 {[%clk 0:00:18]}  Rxg3+ {[%clk 0:01:43]} 27. Kf1 {[%clk 0:00:09]}  Qxh4 {[%clk 0:01:40]} 28. Nxg8 {[%clk 0:00:05]}  Rxg8 {[%clk 0:01:36]} 29. exf5 {[%clk 0:00:05]}  e4 {[%clk 0:01:33]} 30. Bb1 {[%clk 0:00:03]}  exf5 {[%clk 0:01:32]} 31. Rbd2 {[%clk 0:00:03]}  Qxh3+ {[%clk 0:01:32]} 32. Ke2 {[%clk 0:00:03]}  Qf3+ {[%clk 0:01:31]} 33. Ke1 {[%clk 0:00:03]}  Rg1# {[%clk 0:01:29]} 0-1


[Site "https://www.chess.com"]

[Event "Titled Tuesday Blitz March 28 Early 2023"]
[White "Rodriguez Santiago, Jaime"]
[Black "Semenova, Alina"]
[WhiteFideId "3100898"]
[BlackFideId "24113875"]
[WhiteElo "2025"]
[BlackElo "1833"]
[Result "1-0"]
[Round "04"]
[TimeControl "180+2"]
[Date "2023.03.28"]
[WhiteClock "0:00:27"]
[BlackClock "0:00:01"]

1. c4 {[%clk 0:03:00]}  e6 {[%clk 0:02:53]} 2. Nf3 {[%clk 0:03:00]}  d5 {[%clk 0:02:52]} 3. g3 {[%clk 0:03:00]}  Nf6 {[%clk 0:02:50]} 4. Bg2 {[%clk 0:03:00]}  Be7 {[%clk 0:02:51]} 5. O-O {[%clk 0:03:01]}  O-O {[%clk 0:02:51]} 6. b3 {[%clk 0:03:01]}  c5 {[%clk 0:02:47]} 7. Bb2 {[%clk 0:03:02]}  d4 {[%clk 0:02:42]} 8. e3 {[%clk 0:03:02]}  Nc6 {[%clk 0:02:36]} 9. exd4 {[%clk 0:03:00]}  cxd4 {[%clk 0:02:34]} 10. d3 {[%clk 0:03:01]}  e5 {[%clk 0:02:34]} 11. Re1 {[%clk 0:03:00]}  Qc7 {[%clk 0:02:29]} 12. a3 {[%clk 0:02:59]}  a5 {[%clk 0:02:27]} 13. b4 {[%clk 0:02:52]}  axb4 {[%clk 0:02:24]} 14. axb4 {[%clk 0:02:53]}  Rxa1 {[%clk 0:02:21]} 15. Bxa1 {[%clk 0:02:52]}  Bxb4 {[%clk 0:02:21]} 16. Nbd2 {[%clk 0:02:51]}  Bg4 {[%clk 0:02:13]} 17. h3 {[%clk 0:02:50]}  Bh5 {[%clk 0:02:12]} 18. g4 {[%clk 0:02:37]}  Bg6 {[%clk 0:02:11]} 19. Qb3 {[%clk 0:02:36]}  Bc5 {[%clk 0:01:41]} 20. Ng5 {[%clk 0:02:33]}  h6 {[%clk 0:01:35]} 21. Nge4 {[%clk 0:02:32]}  Nxe4 {[%clk 0:01:32]} 22. Nxe4 {[%clk 0:02:33]}  b6 {[%clk 0:01:30]} 23. Nxc5 {[%clk 0:02:29]}  bxc5 {[%clk 0:01:31]} 24. Qb5 {[%clk 0:02:29]}  Ne7 {[%clk 0:01:26]} 25. Rb1 {[%clk 0:02:21]}  Bxd3 {[%clk 0:01:21]} 26. Re1 {[%clk 0:02:14]}  Ng6 {[%clk 0:01:20]} 27. Bd5 {[%clk 0:02:12]}  Nf4 {[%clk 0:01:15]} 28. Bg2 {[%clk 0:02:00]}  Rb8 {[%clk 0:01:01]} 29. Qa6 {[%clk 0:01:53]}  Nxg2 {[%clk 0:00:55]} 30. Kxg2 {[%clk 0:01:52]}  e4 {[%clk 0:00:55]} 31. Qa2 {[%clk 0:01:41]}  Qf4 {[%clk 0:00:53]} 32. Kg1 {[%clk 0:01:40]}  Qf3 {[%clk 0:00:46]} 33. Qd2 {[%clk 0:01:36]}  g5 {[%clk 0:00:36]} 34. Kh2 {[%clk 0:01:23]}  Rb3 {[%clk 0:00:28]} 35. Qa5 {[%clk 0:01:13]}  Bxc4 {[%clk 0:00:16]} 36. Qa8+ {[%clk 0:00:59]}  Kg7 {[%clk 0:00:15]} 37. Kg1 {[%clk 0:00:53]}  Qxh3 {[%clk 0:00:12]} 38. Qxe4 {[%clk 0:00:53]}  Be6 {[%clk 0:00:09]} 39. Qe5+ {[%clk 0:00:43]}  Kg8 {[%clk 0:00:08]} 40. Qxc5 {[%clk 0:00:39]}  Qxg4+ {[%clk 0:00:08]} 41. Kf1 {[%clk 0:00:40]}  Qh3+ {[%clk 0:00:06]} 42. Kg1 {[%clk 0:00:40]}  Qg4+ {[%clk 0:00:05]} 43. Kf1 {[%clk 0:00:40]}  Qh3+ {[%clk 0:00:05]} 44. Kg1 {[%clk 0:00:37]}  Qf5 {[%clk 0:00:03]} 45. Qxd4 {[%clk 0:00:31]}  Qg4+ {[%clk 0:00:03]} 46. Kf1 {[%clk 0:00:30]}  Qxd4 {[%clk 0:00:02]} 47. Bxd4 {[%clk 0:00:31]}  Bc4+ {[%clk 0:00:02]} 48. Kg1 {[%clk 0:00:31]}  Be6 {[%clk 0:00:02]} 49. Ra1 {[%clk 0:00:29]}  Rb4 {[%clk 0:00:01]} 50. Bf6 {[%clk 0:00:27]} 1-0


[Site "https://www.chess.com"]

[Event "Titled Tuesday Blitz March 28 Early 2023"]
[White "Bluebaum, Matthias"]
[Black "Ivic, Velimir"]
[WhiteFideId "24651516"]
[BlackFideId "950122"]
[WhiteElo "2638"]
[BlackElo "2563"]
[Result "1/2-1/2"]
[Round "05"]
[TimeControl "180+2"]
[Date "2023.03.28"]
[WhiteClock "0:00:09"]
[BlackClock "0:00:06"]

1. d4 {[%clk 0:03:00]}  d5 {[%clk 0:03:00]} 2. c4 {[%clk 0:03:01]}  c6 {[%clk 0:03:00]} 3. Nf3 {[%clk 0:03:01]}  Nf6 {[%clk 0:03:00]} 4. Nc3 {[%clk 0:03:02]}  e6 {[%clk 0:02:57]} 5. Qc2 {[%clk 0:03:03]}  Nbd7 {[%clk 0:02:42]} 6. e4 {[%clk 0:03:02]}  dxe4 {[%clk 0:02:43]} 7. Nxe4 {[%clk 0:03:03]}  Nxe4 {[%clk 0:02:44]} 8. Qxe4 {[%clk 0:03:03]}  Bb4+ {[%clk 0:02:45]} 9. Bd2 {[%clk 0:03:03]}  Bxd2+ {[%clk 0:02:44]} 10. Nxd2 {[%clk 0:03:04]}  c5 {[%clk 0:02:37]} 11. dxc5 {[%clk 0:03:04]}  Nxc5 {[%clk 0:02:37]} 12. Qe3 {[%clk 0:03:04]}  b6 {[%clk 0:02:16]} 13. b4 {[%clk 0:02:34]}  Nd7 {[%clk 0:02:12]} 14. Be2 {[%clk 0:02:16]}  Bb7 {[%clk 0:02:10]} 15. O-O {[%clk 0:02:12]}  O-O {[%clk 0:02:07]} 16. Rac1 {[%clk 0:01:51]}  Qe7 {[%clk 0:01:55]} 17. c5 {[%clk 0:01:34]}  bxc5 {[%clk 0:01:51]} 18. bxc5 {[%clk 0:01:35]}  Rfc8 {[%clk 0:01:50]} 19. Nb3 {[%clk 0:01:35]}  Rc7 {[%clk 0:01:21]} 20. Bb5 {[%clk 0:00:59]}  Rac8 {[%clk 0:01:05]} 21. c6 {[%clk 0:00:59]}  Bxc6 {[%clk 0:01:02]} 22. Bxc6 {[%clk 0:00:56]}  Rxc6 {[%clk 0:01:02]} 23. Rxc6 {[%clk 0:00:56]}  Rxc6 {[%clk 0:01:00]} 24. Qxa7 {[%clk 0:00:57]}  Qd6 {[%clk 0:00:14]} 25. Qa8+ {[%clk 0:00:26]}  Nf8 {[%clk 0:00:14]} 26. Qb7 {[%clk 0:00:21]}  Ra6 {[%clk 0:00:10]} 27. Nc1 {[%clk 0:00:21]}  Rb6 {[%clk 0:00:09]} 28. Qf3 {[%clk 0:00:20]}  Rb2 {[%clk 0:00:07]} 29. Qc3 {[%clk 0:00:19]}  Qb4 {[%clk 0:00:05]} 30. Qxb4 {[%clk 0:00:16]}  Rxb4 {[%clk 0:00:06]} 31. Nd3 {[%clk 0:00:16]}  Ra4 {[%clk 0:00:04]} 32. Ra1 {[%clk 0:00:16]}  Ra3 {[%clk 0:00:05]} 33. Nb2 {[%clk 0:00:12]}  Nd7 {[%clk 0:00:05]} 34. Nc4 {[%clk 0:00:13]}  Ra4 {[%clk 0:00:05]} 35. Nb2 {[%clk 0:00:13]}  Ra3 {[%clk 0:00:05]} 36. Nc4 {[%clk 0:00:08]}  Ra4 {[%clk 0:00:06]} 37. Nb2 {[%clk 0:00:09]}  Ra3 {[%clk 0:00:06]} 1/2-1/2


[Site "https://www.chess.com"]

[Event "Titled Tuesday Blitz March 28 Early 2023"]
[White "Yoo, Christopher Woojin"]
[Black "Preotu, Razvan"]
[WhiteFideId "30909694"]
[BlackFideId "2613280"]
[WhiteElo "2519"]
[BlackElo "2407"]
[Result "0-1"]
[Round "05"]
[TimeControl "180+2"]
[Date "2023.03.28"]
[WhiteClock "0:00:03"]
[BlackClock "0:00:16"]

1. e4 {[%clk 0:03:00]}  e6 {[%clk 0:03:00]} 2. d3 {[%clk 0:02:56]}  d5 {[%clk 0:03:01]} 3. Nd2 {[%clk 0:02:57]}  Nf6 {[%clk 0:03:01]} 4. Ngf3 {[%clk 0:02:57]}  Nc6 {[%clk 0:03:01]} 5. g3 {[%clk 0:02:58]}  dxe4 {[%clk 0:02:56]} 6. dxe4 {[%clk 0:02:57]}  Bc5 {[%clk 0:02:57]} 7. Bb5 {[%clk 0:02:52]}  O-O {[%clk 0:02:52]} 8. O-O {[%clk 0:02:51]}  e5 {[%clk 0:02:33]} 9. Nb3 {[%clk 0:02:20]}  Bd6 {[%clk 0:02:26]} 10. Bxc6 {[%clk 0:01:53]}  bxc6 {[%clk 0:02:27]} 11. Re1 {[%clk 0:01:54]}  Bg4 {[%clk 0:02:16]} 12. Qd3 {[%clk 0:01:51]}  h6 {[%clk 0:02:00]} 13. Nh4 {[%clk 0:01:38]}  Qc8 {[%clk 0:01:54]} 14. f3 {[%clk 0:01:30]}  Be6 {[%clk 0:01:54]} 15. Be3 {[%clk 0:01:23]}  Rd8 {[%clk 0:01:40]} 16. Qc3 {[%clk 0:01:18]}  a5 {[%clk 0:01:13]} 17. Nxa5 {[%clk 0:00:51]}  c5 {[%clk 0:00:39]} 18. Bxc5 {[%clk 0:00:39]}  Bxc5+ {[%clk 0:00:40]} 19. Qxc5 {[%clk 0:00:38]}  Rd2 {[%clk 0:00:40]} 20. Nc6 {[%clk 0:00:30]}  Qb7 {[%clk 0:00:35]} 21. b3 {[%clk 0:00:13]}  Ra6 {[%clk 0:00:26]} 22. Nxe5 {[%clk 0:00:12]}  Rad6 {[%clk 0:00:26]} 23. Nd3 {[%clk 0:00:10]}  Rc6 {[%clk 0:00:20]} 24. Qe3 {[%clk 0:00:05]}  Rcxc2 {[%clk 0:00:20]} 25. Rac1 {[%clk 0:00:04]}  Qc6 {[%clk 0:00:17]} 26. Rxc2 {[%clk 0:00:03]}  Qxc2 {[%clk 0:00:17]} 27. Nb4 {[%clk 0:00:03]}  Qb2 {[%clk 0:00:18]} 28. Nd3 {[%clk 0:00:03]}  Qc3 {[%clk 0:00:18]} 29. Nf4 {[%clk 0:00:03]}  Qc2 {[%clk 0:00:16]} 0-1


[Site "https://www.chess.com"]

[Event "Titled Tuesday Blitz March 28 Early 2023"]
[White "Aradhya, Garg"]
[Black "Demchenko, Anton"]
[WhiteFideId "25006746"]
[BlackFideId "4160258"]
[WhiteElo "2263"]
[BlackElo "2545"]
[Result "1-0"]
[Round "05"]
[TimeControl "180+2"]
[Date "2023.03.28"]
[WhiteClock "0:00:06"]
[BlackClock "0:00:02"]

1. d4 {[%clk 0:03:00]}  d5 {[%clk 0:02:56]} 2. c4 {[%clk 0:03:01]}  c6 {[%clk 0:02:56]} 3. Nf3 {[%clk 0:03:01]}  Nf6 {[%clk 0:02:56]} 4. Nc3 {[%clk 0:03:01]}  e6 {[%clk 0:02:56]} 5. Bg5 {[%clk 0:02:59]}  Nbd7 {[%clk 0:02:56]} 6. e3 {[%clk 0:02:59]}  Be7 {[%clk 0:02:55]} 7. Rc1 {[%clk 0:02:55]}  h6 {[%clk 0:02:54]} 8. Bh4 {[%clk 0:02:54]}  O-O {[%clk 0:02:54]} 9. Bd3 {[%clk 0:02:53]}  dxc4 {[%clk 0:02:51]} 10. Bxc4 {[%clk 0:02:54]}  b5 {[%clk 0:02:52]} 11. Bd3 {[%clk 0:02:54]}  Bb7 {[%clk 0:02:52]} 12. O-O {[%clk 0:02:54]}  a6 {[%clk 0:02:46]} 13. a4 {[%clk 0:02:14]}  Rc8 {[%clk 0:02:41]} 14. Bxf6 {[%clk 0:02:13]}  Nxf6 {[%clk 0:02:37]} 15. Ne4 {[%clk 0:02:14]}  Nxe4 {[%clk 0:02:17]} 16. Bxe4 {[%clk 0:02:14]}  Bd6 {[%clk 0:02:18]} 17. axb5 {[%clk 0:01:46]}  axb5 {[%clk 0:02:17]} 18. Qd2 {[%clk 0:01:41]}  Qe7 {[%clk 0:02:05]} 19. Rc2 {[%clk 0:01:36]}  Rfd8 {[%clk 0:01:56]} 20. Rfc1 {[%clk 0:01:34]}  Qe8 {[%clk 0:01:30]} 21. b4 {[%clk 0:01:24]}  f5 {[%clk 0:01:23]} 22. Bd3 {[%clk 0:01:24]}  Qe7 {[%clk 0:01:24]} 23. Rb2 {[%clk 0:01:13]}  Ra8 {[%clk 0:01:24]} 24. Qc3 {[%clk 0:00:55]}  Ra4 {[%clk 0:01:12]} 25. Rcb1 {[%clk 0:00:54]}  Rda8 {[%clk 0:01:08]} 26. Bc2 {[%clk 0:00:53]}  Ra3 {[%clk 0:01:07]} 27. Rb3 {[%clk 0:00:49]}  Ra2 {[%clk 0:01:06]} 28. e4 {[%clk 0:00:46]}  fxe4 {[%clk 0:00:30]} 29. Bxe4 {[%clk 0:00:44]}  Qf6 {[%clk 0:00:31]} 30. Bxc6 {[%clk 0:00:31]}  Rc8 {[%clk 0:00:24]} 31. d5 {[%clk 0:00:31]}  Qxc3 {[%clk 0:00:05]} 32. Rxc3 {[%clk 0:00:30]}  e5 {[%clk 0:00:06]} 33. Rcc1 {[%clk 0:00:22]}  Ba6 {[%clk 0:00:04]} 34. Nh4 {[%clk 0:00:17]}  Ra4 {[%clk 0:00:03]} 35. Nf5 {[%clk 0:00:17]}  Bf8 {[%clk 0:00:04]} 36. d6 {[%clk 0:00:16]}  Rd8 {[%clk 0:00:05]} 37. Ra1 {[%clk 0:00:11]}  Bc8 {[%clk 0:00:03]} 38. Rxa4 {[%clk 0:00:10]}  bxa4 {[%clk 0:00:03]} 39. Ne7+ {[%clk 0:00:10]}  Kh8 {[%clk 0:00:03]} 40. Ng6+ {[%clk 0:00:11]}  Kg8 {[%clk 0:00:02]} 41. Bd5+ {[%clk 0:00:09]}  Kh7 {[%clk 0:00:03]} 42. Nxf8+ {[%clk 0:00:09]}  Rxf8 {[%clk 0:00:04]} 43. Be4+ {[%clk 0:00:08]}  Kh8 {[%clk 0:00:04]} 44. Bc6 {[%clk 0:00:08]}  a3 {[%clk 0:00:03]} 45. d7 {[%clk 0:00:08]}  Bxd7 {[%clk 0:00:03]} 46. Bxd7 {[%clk 0:00:08]}  Ra8 {[%clk 0:00:03]} 47. Ra1 {[%clk 0:00:08]}  Rb8 {[%clk 0:00:01]} 48. Rxa3 {[%clk 0:00:06]}  Rxb4 {[%clk 0:00:02]} 49. g3 {[%clk 0:00:06]} 1-0


[Site "https://www.chess.com"]

[Event "Titled Tuesday Blitz March 28 Early 2023"]
[White "Papasimakopoulos, Alexandros"]
[Black "So, Wesley"]
[WhiteFideId "4244125"]
[BlackFideId "5202213"]
[WhiteElo "2359"]
[BlackElo "2739"]
[Result "0-1"]
[Round "05"]
[TimeControl "180+2"]
[Date "2023.03.28"]
[WhiteClock "0:00:13"]
[BlackClock "0:00:16"]

1. d4 {[%clk 0:03:00]}  d5 {[%clk 0:02:58]} 2. c4 {[%clk 0:02:59]}  e6 {[%clk 0:02:59]} 3. Nc3 {[%clk 0:02:59]}  Nf6 {[%clk 0:02:58]} 4. cxd5 {[%clk 0:02:58]}  exd5 {[%clk 0:02:59]} 5. Bg5 {[%clk 0:02:57]}  Be7 {[%clk 0:02:59]} 6. e3 {[%clk 0:02:57]}  h6 {[%clk 0:02:53]} 7. Bh4 {[%clk 0:02:56]}  Bg4 {[%clk 0:02:53]} 8. Qb3 {[%clk 0:02:54]}  Nbd7 {[%clk 0:02:52]} 9. h3 {[%clk 0:02:48]}  Be6 {[%clk 0:02:50]} 10. Nf3 {[%clk 0:02:45]}  c5 {[%clk 0:02:36]} 11. Bg3 {[%clk 0:02:43]}  c4 {[%clk 0:02:33]} 12. Qxb7 {[%clk 0:02:37]}  O-O {[%clk 0:02:33]} 13. Be2 {[%clk 0:02:36]}  Qa5 {[%clk 0:02:17]} 14. Bc7 {[%clk 0:02:23]}  Qb4 {[%clk 0:01:59]} 15. Qxb4 {[%clk 0:02:22]}  Bxb4 {[%clk 0:01:59]} 16. O-O {[%clk 0:02:23]}  Rfc8 {[%clk 0:01:51]} 17. Bf4 {[%clk 0:02:17]}  g5 {[%clk 0:01:47]} 18. Bh2 {[%clk 0:02:13]}  Bxc3 {[%clk 0:01:45]} 19. bxc3 {[%clk 0:02:13]}  Ne4 {[%clk 0:01:32]} 20. Rfc1 {[%clk 0:02:14]}  Bf5 {[%clk 0:01:32]} 21. Kf1 {[%clk 0:02:11]}  Rc6 {[%clk 0:01:29]} 22. g4 {[%clk 0:01:53]}  Bg6 {[%clk 0:01:25]} 23. Ne1 {[%clk 0:01:31]}  Re8 {[%clk 0:01:12]} 24. Rc2 {[%clk 0:01:04]}  Rb6 {[%clk 0:01:07]} 25. Rac1 {[%clk 0:01:04]}  Nef6 {[%clk 0:01:03]} 26. Rd2 {[%clk 0:01:04]}  Ne4 {[%clk 0:01:03]} 27. Rdc2 {[%clk 0:01:03]}  Ree6 {[%clk 0:00:59]} 28. Ng2 {[%clk 0:00:57]}  Nef6 {[%clk 0:00:57]} 29. Rd2 {[%clk 0:00:57]}  Ne4 {[%clk 0:00:57]} 30. Rdc2 {[%clk 0:00:57]}  Nd6 {[%clk 0:00:43]} 31. Rd2 {[%clk 0:00:56]}  Nb5 {[%clk 0:00:42]} 32. a4 {[%clk 0:00:42]}  Na3 {[%clk 0:00:40]} 33. Ra2 {[%clk 0:00:41]}  Rb1 {[%clk 0:00:29]} 34. Ra1 {[%clk 0:00:37]}  Reb6 {[%clk 0:00:25]} 35. f3 {[%clk 0:00:22]}  Rxa1 {[%clk 0:00:22]} 36. Rxa1 {[%clk 0:00:22]}  Nb1 {[%clk 0:00:23]} 37. e4 {[%clk 0:00:20]}  Nxc3 {[%clk 0:00:20]} 38. exd5 {[%clk 0:00:19]}  Bd3 {[%clk 0:00:18]} 39. Bxd3 {[%clk 0:00:18]}  cxd3 {[%clk 0:00:19]} 40. Ne3 {[%clk 0:00:16]}  Rb2 {[%clk 0:00:18]} 41. Bg3 {[%clk 0:00:15]}  Nf6 {[%clk 0:00:16]} 42. Be1 {[%clk 0:00:14]}  Nfxd5 {[%clk 0:00:15]} 43. Nxd5 {[%clk 0:00:15]}  Nxd5 {[%clk 0:00:16]} 44. Rd1 {[%clk 0:00:14]}  Ne3+ {[%clk 0:00:16]} 45. Kg1 {[%clk 0:00:13]}  Nxd1 {[%clk 0:00:16]} 0-1


[Site "https://www.chess.com"]

[Event "Titled Tuesday Blitz March 28 Early 2023"]
[White "Vachier-Lagrave, Maxime"]
[Black "Zhigalko, Sergei"]
[WhiteFideId "623539"]
[BlackFideId "13502956"]
[WhiteElo "2740"]
[BlackElo "2626"]
[Result "1-0"]
[Round "05"]
[TimeControl "180+2"]
[Date "2023.03.28"]
[WhiteClock "0:00:35"]
[BlackClock "0:00:02"]

1. e4 {[%clk 0:03:00]}  c5 {[%clk 0:02:57]} 2. Nf3 {[%clk 0:03:01]}  Nc6 {[%clk 0:02:58]} 3. Bb5 {[%clk 0:02:59]}  Nf6 {[%clk 0:02:56]} 4. Nc3 {[%clk 0:02:59]}  Qc7 {[%clk 0:02:55]} 5. O-O {[%clk 0:02:54]}  Nd4 {[%clk 0:02:56]} 6. Re1 {[%clk 0:02:54]}  a6 {[%clk 0:02:55]} 7. Bc4 {[%clk 0:02:43]}  d6 {[%clk 0:02:46]} 8. Nd5 {[%clk 0:02:21]}  Nxd5 {[%clk 0:02:46]} 9. Bxd5 {[%clk 0:02:22]}  e6 {[%clk 0:02:11]} 10. Nxd4 {[%clk 0:02:21]}  cxd4 {[%clk 0:02:11]} 11. Bb3 {[%clk 0:02:21]}  Be7 {[%clk 0:02:10]} 12. c3 {[%clk 0:02:15]}  Bf6 {[%clk 0:02:08]} 13. c4 {[%clk 0:01:51]}  O-O {[%clk 0:01:55]} 14. d3 {[%clk 0:01:51]}  b5 {[%clk 0:01:55]} 15. cxb5 {[%clk 0:01:50]}  axb5 {[%clk 0:01:55]} 16. Bd2 {[%clk 0:01:51]}  Bd7 {[%clk 0:01:54]} 17. Rc1 {[%clk 0:01:51]}  Qb6 {[%clk 0:01:49]} 18. Qh5 {[%clk 0:01:39]}  Rfc8 {[%clk 0:01:47]} 19. Bb4 {[%clk 0:01:37]}  h6 {[%clk 0:01:44]} 20. f4 {[%clk 0:01:36]}  Rxc1 {[%clk 0:01:29]} 21. Rxc1 {[%clk 0:01:37]}  Rc8 {[%clk 0:01:29]} 22. Rxc8+ {[%clk 0:01:36]}  Bxc8 {[%clk 0:01:29]} 23. Qd1 {[%clk 0:01:31]}  Bd7 {[%clk 0:01:21]} 24. Qc2 {[%clk 0:01:27]}  Bd8 {[%clk 0:01:16]} 25. a3 {[%clk 0:01:24]}  Bf6 {[%clk 0:01:15]} 26. Kf2 {[%clk 0:01:15]}  Bh4+ {[%clk 0:01:14]} 27. g3 {[%clk 0:01:12]}  Bd8 {[%clk 0:01:15]} 28. Ke1 {[%clk 0:01:12]}  Bf6 {[%clk 0:01:12]} 29. Kd1 {[%clk 0:01:11]}  Bd8 {[%clk 0:01:12]} 30. Kc1 {[%clk 0:01:12]}  Bf6 {[%clk 0:01:11]} 31. Kb1 {[%clk 0:01:12]}  Bd8 {[%clk 0:01:12]} 32. Ka2 {[%clk 0:01:11]}  Bf6 {[%clk 0:01:11]} 33. h4 {[%clk 0:01:11]}  Bd8 {[%clk 0:01:11]} 34. h5 {[%clk 0:01:12]}  Bf6 {[%clk 0:01:05]} 35. g4 {[%clk 0:01:12]}  Bd8 {[%clk 0:01:04]} 36. Qg2 {[%clk 0:01:10]}  Qc6 {[%clk 0:00:18]} 37. g5 {[%clk 0:01:09]}  hxg5 {[%clk 0:00:19]} 38. fxg5 {[%clk 0:01:09]}  Qc1 {[%clk 0:00:19]} 39. g6 {[%clk 0:01:05]}  Qf4 {[%clk 0:00:19]} 40. gxf7+ {[%clk 0:01:03]}  Qxf7 {[%clk 0:00:17]} 41. Bxd6 {[%clk 0:01:03]}  Qxh5 {[%clk 0:00:17]} 42. e5 {[%clk 0:00:56]}  Qe8 {[%clk 0:00:11]} 43. Qe4 {[%clk 0:00:50]}  Bb6 {[%clk 0:00:08]} 44. Qb7 {[%clk 0:00:50]}  Qd8 {[%clk 0:00:04]} 45. Bd1 {[%clk 0:00:42]}  Kh7 {[%clk 0:00:04]} 46. Bh5 {[%clk 0:00:35]}  Kh8 {[%clk 0:00:02]} 47. Bg6 {[%clk 0:00:35]}  Kg8 {[%clk 0:00:02]} 48. Qh1 {[%clk 0:00:35]} 1-0


[Site "https://www.chess.com"]

[Event "Titled Tuesday Blitz March 28 Early 2023"]
[White "Gholami Orimi, Mahdi"]
[Black "Kezin, Roman"]
[WhiteFideId "12558486"]
[BlackFideId "24124621"]
[WhiteElo "2363"]
[BlackElo "2497"]
[Result "1-0"]
[Round "05"]
[TimeControl "180+2"]
[Date "2023.03.28"]
[WhiteClock "0:02:11"]
[BlackClock "0:00:19"]

1. d4 {[%clk 0:03:00]}  g6 {[%clk 0:02:59]} 2. c4 {[%clk 0:03:01]}  Bg7 {[%clk 0:02:59]} 3. Nc3 {[%clk 0:03:01]}  c5 {[%clk 0:02:59]} 4. d5 {[%clk 0:03:01]}  Bxc3+ {[%clk 0:02:58]} 5. bxc3 {[%clk 0:03:02]}  f5 {[%clk 0:02:58]} 6. e4 {[%clk 0:03:03]}  fxe4 {[%clk 0:02:50]} 7. f3 {[%clk 0:03:03]}  e5 {[%clk 0:02:50]} 8. fxe4 {[%clk 0:03:03]}  d6 {[%clk 0:02:45]} 9. Bd3 {[%clk 0:02:59]}  Nf6 {[%clk 0:02:45]} 10. Nf3 {[%clk 0:02:59]}  Bg4 {[%clk 0:02:30]} 11. O-O {[%clk 0:02:57]}  O-O {[%clk 0:02:30]} 12. Bh6 {[%clk 0:02:56]}  Rf7 {[%clk 0:02:29]} 13. Qd2 {[%clk 0:02:56]}  Bxf3 {[%clk 0:01:17]} 14. Rxf3 {[%clk 0:02:57]}  Ng4 {[%clk 0:00:41]} 15. Rxf7 {[%clk 0:02:52]}  Kxf7 {[%clk 0:00:42]} 16. Rf1+ {[%clk 0:02:51]}  Nf6 {[%clk 0:00:42]} 17. Be2 {[%clk 0:02:44]}  Nd7 {[%clk 0:00:40]} 18. Bg4 {[%clk 0:02:42]}  Kg8 {[%clk 0:00:27]} 19. Be6+ {[%clk 0:02:40]}  Kh8 {[%clk 0:00:28]} 20. Qe3 {[%clk 0:02:14]}  Ng8 {[%clk 0:00:19]} 21. Rf7 {[%clk 0:02:11]} 1-0


[Site "https://www.chess.com"]

[Event "Titled Tuesday Blitz March 28 Early 2023"]
[White "Bacrot, Etienne"]
[Black "Kosteniuk, Alexandra"]
[WhiteFideId "605506"]
[BlackFideId "4128125"]
[WhiteElo "2663"]
[BlackElo "2453"]
[Result "1-0"]
[Round "05"]
[TimeControl "180+2"]
[Date "2023.03.28"]
[WhiteClock "0:00:53"]
[BlackClock "0:00:06"]

1. e4 {[%clk 0:03:00]}  e5 {[%clk 0:02:57]} 2. Nf3 {[%clk 0:03:00]}  Nc6 {[%clk 0:02:57]} 3. Bb5 {[%clk 0:03:00]}  a6 {[%clk 0:02:57]} 4. Ba4 {[%clk 0:03:01]}  Nf6 {[%clk 0:02:58]} 5. O-O {[%clk 0:03:01]}  b5 {[%clk 0:02:57]} 6. Bb3 {[%clk 0:03:01]}  Be7 {[%clk 0:02:58]} 7. Re1 {[%clk 0:03:00]}  O-O {[%clk 0:02:57]} 8. a4 {[%clk 0:03:00]}  b4 {[%clk 0:02:55]} 9. d3 {[%clk 0:02:58]}  d6 {[%clk 0:02:50]} 10. Nbd2 {[%clk 0:02:59]}  Na5 {[%clk 0:02:50]} 11. Ba2 {[%clk 0:02:59]}  c5 {[%clk 0:02:49]} 12. c3 {[%clk 0:02:57]}  Rb8 {[%clk 0:02:46]} 13. Nf1 {[%clk 0:02:55]}  b3 {[%clk 0:02:43]} 14. Bb1 {[%clk 0:02:55]}  Re8 {[%clk 0:02:37]} 15. d4 {[%clk 0:02:50]}  Bg4 {[%clk 0:02:23]} 16. dxe5 {[%clk 0:02:39]}  Bxf3 {[%clk 0:02:23]} 17. Qxf3 {[%clk 0:02:39]}  dxe5 {[%clk 0:02:23]} 18. Bd3 {[%clk 0:02:38]}  c4 {[%clk 0:02:18]} 19. Be2 {[%clk 0:02:38]}  Nd7 {[%clk 0:02:02]} 20. Ne3 {[%clk 0:02:29]}  Qc8 {[%clk 0:01:44]} 21. Qg3 {[%clk 0:02:21]}  Bf8 {[%clk 0:01:39]} 22. Bg4 {[%clk 0:02:21]}  Qc6 {[%clk 0:01:31]} 23. Nd5 {[%clk 0:02:11]}  Nc5 {[%clk 0:01:24]} 24. Bg5 {[%clk 0:02:03]}  Nxe4 {[%clk 0:01:15]} 25. Rxe4 {[%clk 0:01:58]}  Qxd5 {[%clk 0:01:15]} 26. Rae1 {[%clk 0:01:55]}  Nc6 {[%clk 0:00:45]} 27. Bf3 {[%clk 0:01:45]}  Qc5 {[%clk 0:00:41]} 28. Be3 {[%clk 0:01:45]}  Qd6 {[%clk 0:00:38]} 29. Rxc4 {[%clk 0:01:40]}  Ne7 {[%clk 0:00:35]} 30. Qh3 {[%clk 0:01:32]}  Qg6 {[%clk 0:00:33]} 31. Rg4 {[%clk 0:01:26]}  Qe6 {[%clk 0:00:33]} 32. Be4 {[%clk 0:01:22]}  f5 {[%clk 0:00:33]} 33. Rh4 {[%clk 0:01:18]}  Qg6 {[%clk 0:00:27]} 34. Bd3 {[%clk 0:01:13]}  Red8 {[%clk 0:00:12]} 35. Bc4+ {[%clk 0:01:12]}  Kh8 {[%clk 0:00:12]} 36. Bf7 {[%clk 0:00:52]}  Qxf7 {[%clk 0:00:05]} 37. Rxh7+ {[%clk 0:00:52]}  Kg8 {[%clk 0:00:06]} 38. Rh8# {[%clk 0:00:53]} 1-0


[Site "https://www.chess.com"]